[Event "Estonian Chess Championship 2021"]
[Site "Tallinn, Paul Keres Chess House, Estonia"]
[Date "2021.12.12"]
[Round "2.5"]
[White "Rychagov, Nikita"]
[Black "Timoshin, Andrei"]
[Result "1/2-1/2"]
[TimeControl "90 minutes for first 40 moves and 15 min. for the rest of the game with 30 sec."]
[WhiteFideId "4508394"]
[BlackFideId "4503503"]
[WhiteElo "1985"]
[BlackElo "2150"]

1. e4 {[%clk 01:30:57]} {[%emt 00:00:02]} d5 {[%clk 01:25:25]} {[%emt
00:05:35]} 2. exd5 {[%clk 01:31:22]} {[%emt 00:00:06]} Qxd5 {[%clk 01:25:53]}
{[%emt 00:00:02]} 3. Nc3 {[%clk 01:31:42]} {[%emt 00:00:10]} Qd8 {[%clk
01:26:04]} {[%emt 00:00:19]} 4. d4 {[%clk 01:32:05]} {[%emt 00:00:07]} Nf6
{[%clk 01:26:29]} {[%emt 00:00:06]} 5. Nf3 {[%clk 01:32:04]} {[%emt 00:00:31]}
Bg4 {[%clk 01:26:48]} {[%emt 00:00:10]} 6. Bc4 {[%clk 01:32:15]} {[%emt
00:00:20]} e6 {[%clk 01:21:37]} {[%emt 00:05:41]} 7. h3 {[%clk 01:32:40]}
{[%emt 00:00:04]} Bxf3 {[%clk 01:21:38]} {[%emt 00:00:28]} 8. Qxf3 {[%clk
01:32:26]} {[%emt 00:00:45]} c6 {[%clk 01:21:38]} {[%emt 00:00:30]} 9. Be3
{[%clk 01:23:38]} {[%emt 00:09:17]} Nbd7 {[%clk 01:20:10]} {[%emt 00:01:58]} 10.
O-O {[%clk 01:19:50]} {[%emt 00:04:18]} Bd6 {[%clk 01:17:24]} {[%emt 00:03:16]}
11. Rfe1 {[%clk 01:18:07]} {[%emt 00:02:13]} O-O {[%clk 01:16:34]} {[%emt
00:01:20]} 12. Bb3 {[%clk 01:14:50]} {[%emt 00:03:47]} Rc8 {[%clk 01:08:10]}
{[%emt 00:08:53]} 13. Ne4 {[%clk 01:09:24]} {[%emt 00:05:57]} Nxe4 {[%clk
01:06:00]} {[%emt 00:02:39]} 14. Qxe4 {[%clk 01:09:50]} {[%emt 00:00:05]} Nf6
{[%clk 01:02:47]} {[%emt 00:03:43]} 15. Qf3 {[%emt 00:10:55]} Nd5 {[%clk
00:52:33]} 16. Bd2 {[%clk 01:08:56]} {[%emt 00:01:42]} Qf6 {[%clk 00:48:42]}
{[%emt 00:04:21]} 17. Qxf6 {[%clk 01:08:40]} {[%emt 00:00:46]} Nxf6 {[%clk
00:48:54]} {[%emt 00:00:18]} 18. Rad1 {[%clk 01:07:29]} {[%emt 00:01:41]} h6
{[%clk 00:44:58]} {[%emt 00:04:26]} 19. c4 {[%clk 01:05:31]} {[%emt 00:02:28]}
Rfd8 {[%clk 00:41:01]} {[%emt 00:04:27]} 20. Bc3 {[%clk 01:02:45]} {[%emt
00:03:17]} b5 {[%clk 00:34:29]} {[%emt 00:07:02]} 21. Rc1 {[%clk 00:50:43]}
{[%emt 00:12:32]} b4 {[%clk 00:26:27]} {[%emt 00:08:32]} 22. Bd2 {[%clk
00:51:06]} {[%emt 00:00:07]} c5 {[%clk 00:26:49]} {[%emt 00:00:08]} 23. dxc5
{[%clk 00:41:03]} {[%emt 00:10:33]} Bh2+ {[%clk 00:22:19]} {[%emt 00:04:59]} 24.
Kxh2 {[%clk 00:41:29]} {[%emt 00:00:05]} Rxd2 {[%clk 00:22:44]} {[%emt
00:00:06]} 25. Rc2 {[%clk 00:41:06]} {[%emt 00:00:53]} Rxc2 {[%clk 00:20:55]}
{[%emt 00:02:19]} 26. Bxc2 {[%clk 00:41:31]} {[%emt 00:00:05]} Rxc5 {[%clk
00:21:07]} {[%emt 00:00:17]} 27. Rd1 {[%clk 00:41:39]} {[%emt 00:00:23]} Kf8
{[%clk 00:20:51]} {[%emt 00:00:45]} 28. Rd8+ {[%clk 00:41:37]} {[%emt
00:00:33]} Ke7 {[%clk 00:21:18]} {[%emt 00:00:03]} 29. Rb8 {[%clk 00:40:23]}
{[%emt 00:01:44]} Rxc4 {[%clk 00:18:42]} {[%emt 00:03:06]} 30. Rb7+ {[%clk
00:39:38]} {[%emt 00:01:15]} Kd6 {[%clk 00:18:29]} {[%emt 00:00:43]} 31. Bb3
{[%clk 00:39:52]} {[%emt 00:00:16]} Rc7 {[%clk 00:18:20]} {[%emt 00:00:38]} 32.
Rxb4 {[%clk 00:40:19]} {[%emt 00:00:04]} Nd7 {[%clk 00:16:58]} {[%emt
00:01:53]} 33. Kg3 {[%clk 00:39:41]} {[%emt 00:01:07]} Nb6 {[%clk 00:13:27]}
{[%emt 00:04:01]} 34. Kf3 {[%clk 00:38:08]} {[%emt 00:02:02]} Rc1 {[%clk
00:11:57]} {[%emt 00:02:00]} 35. Rd4+ {[%clk 00:38:22]} {[%emt 00:00:16]} Ke7
{[%clk 00:12:07]} {[%emt 00:00:19]} 36. Rd1 {[%clk 00:36:55]} {[%emt 00:01:58]}
Rc5 {[%clk 00:11:58]} {[%emt 00:00:39]} 37. Rd2 {[%clk 00:36:30]} {[%emt
00:00:55]} a5 {[%clk 00:11:28]} {[%emt 00:01:00]} 38. Rc2 {[%clk 00:34:19]}
{[%emt 00:02:41]} Rb5 {[%clk 00:10:17]} {[%emt 00:01:41]} 39. Rc7+ {[%clk
00:29:43]} {[%emt 00:05:06]} Kf6 {[%clk 00:10:31]} {[%emt 00:00:16]} 40. Ra7
{[%clk 00:44:13]} {[%emt 00:01:01]} g6 {[%clk 00:19:32]} {[%emt 00:06:28]} 41.
g3 {[%clk 00:44:06]} {[%emt 00:00:37]} Nc8 {[%clk 00:17:07]} {[%emt 00:02:55]}
42. Ra6 {[%clk 00:42:12]} {[%emt 00:02:24]} Nb6 {[%clk 00:17:29]} {[%emt
00:00:09]} 43. h4 {[%clk 00:42:02]} {[%emt 00:00:40]} Nd7 {[%clk 00:12:04]}
{[%emt 00:05:55]} 44. Ra7 {[%clk 00:26:20]} {[%emt 00:16:12]} Nb6 {[%clk
00:09:50]} {[%emt 00:02:44]} 45. Kg2 {[%clk 00:24:34]} {[%emt 00:02:16]} g5
{[%clk 00:09:10]} {[%emt 00:01:10]} 46. hxg5+ {[%clk 00:24:45]} {[%emt
00:00:19]} hxg5 {[%clk 00:09:38]} {[%emt 00:00:02]} 47. Kf3 {[%clk 00:22:59]}
{[%emt 00:02:16]} Nc8 {[%clk 00:09:50]} {[%emt 00:00:19]} 48. Ra6 {[%clk
00:20:19]} {[%emt 00:03:11]} Nb6 {[%clk 00:10:18]} {[%emt 00:00:01]} 49. Kg2
{[%clk 00:20:25]} {[%emt 00:00:24]} g4 {[%clk 00:09:32]} {[%emt 00:01:16]} 50.
Ra7 {[%clk 00:20:36]} {[%emt 00:00:19]} Nc8 {[%clk 00:09:40]} {[%emt 00:00:22]}
51. Ra6 {[%clk 00:20:26]} {[%emt 00:00:41]} Nb6 {[%clk 00:09:51]} {[%emt
00:00:19]} 52. Ra7 {[%clk 00:19:57]} {[%emt 00:00:58]} Nc8 {[%clk 00:01:05]}
{[%emt 00:09:16]} 53. Rd7 {[%clk 00:18:43]} {[%emt 00:01:44]} Nb6 {[%clk
00:01:10]} {[%emt 00:00:25]} 54. Rd4 {[%clk 00:19:02]} {[%emt 00:00:11]} Kg5
{[%clk 00:01:20]} {[%emt 00:00:20]} 55. Bd1 {[%clk 00:18:54]} {[%emt 00:00:38]}
f5 {[%clk 00:00:41]} {[%emt 00:01:09]} 56. b3 {[%clk 00:18:53]} {[%emt
00:00:31]} e5 {[%clk 00:00:34]} {[%emt 00:00:38]} 57. Rd6 {[%clk 00:18:28]}
{[%emt 00:00:55]} Nd5 {[%clk 00:00:45]} {[%emt 00:00:19]} 58. Be2 {[%clk
00:17:40]} {[%emt 00:01:17]} Rc5 {[%clk 00:01:11]} {[%emt 00:00:04]} 59. Bc4
{[%clk 00:17:37]} {[%emt 00:00:33]} Nb4 {[%clk 00:01:17]} {[%emt 00:00:23]} 60.
a4 {[%clk 00:17:03]} {[%emt 00:01:04]} Nc2 {[%clk 00:01:19]} {[%emt 00:00:28]}
61. Ra6 {[%clk 00:15:35]} {[%emt 00:01:59]} Nd4 {[%clk 00:01:30]} {[%emt
00:00:18]} 62. Kf1 {[%clk 00:15:12]} {[%emt 00:00:53]} f4 {[%clk 00:01:07]}
{[%emt 00:00:53]} 63. gxf4+ {[%clk 00:14:14]} {[%emt 00:01:28]} exf4 {[%clk
00:01:17]} {[%emt 00:00:21]} 64. Rd6 {[%clk 00:14:33]} {[%emt 00:00:11]} Nf5
{[%clk 00:00:34]} {[%emt 00:01:13]} 65. Rd5 {[%clk 00:14:56]} {[%emt 00:00:06]}
Rxd5 {[%clk 00:01:00]} {[%emt 00:00:04]} 66. Bxd5 {[%clk 00:15:24]} {[%emt
00:00:03]} f3 {[%clk 00:00:36]} {[%emt 00:00:53]} 67. Ke1 {[%clk 00:13:57]}
{[%emt 00:01:56]} Kf4 {[%clk 00:00:50]} {[%emt 00:00:16]} 68. Kd2 {[%clk
00:12:34]} {[%emt 00:01:54]} Ke5 {[%clk 00:00:36]} {[%emt 00:00:44]} 69. Bc4
{[%clk 00:12:45]} {[%emt 00:00:18]} Nd6 {[%clk 00:00:37]} {[%emt 00:00:28]} 70.
Ke3 {[%clk 00:11:17]} {[%emt 00:01:58]} Nf5+ {[%clk 00:01:06]} {[%emt
00:00:02]} 71. Kd2 {[%clk 00:11:02]} {[%emt 00:00:45]} Ne7 {[%clk 00:00:40]}
{[%emt 00:00:56]} 72. Ke3 {[%clk 00:10:41]} {[%emt 00:00:51]} Nf5+ {[%clk
00:01:00]} {[%emt 00:00:10]} 73. Kd2 {[%clk 00:11:08]} {[%emt 00:00:03]} Nd4
{[%clk 00:00:40]} {[%emt 00:00:50]} 74. Ke3 {[%clk 00:11:01]} {[%emt 00:00:37]}
Nc2+ {[%clk 00:00:36]} {[%emt 00:00:34]} 75. Kd2 {[%clk 00:11:14]} {[%emt
00:00:17]} Nb4 {[%clk 00:00:49]} {[%emt 00:00:16]} 76. Ke3 {[%clk 00:11:33]}
{[%emt 00:00:12]} Nc2+ {[%clk 00:00:34]} {[%emt 00:00:45]} 77. Kd2 {[%clk
00:11:56]} {[%emt 00:00:06]} Nb4 {[%clk 00:01:02]} {[%emt 00:00:02]} 78. Ke3
{[%clk 00:12:20]} {[%emt 00:00:06]} Nc2+ {[%emt 00:00:49]} 79. Kd2 {[%emt
00:00:01]} Nd4 80. Ke3 {[%emt 00:00:01]} 1/2-1/2

[Event "Estonian Chess Championship 2021"]
[Site "Tallinn, Paul Keres Chess House, Estonia"]
[Date "2021.12.13"]
[Round "3.1"]
[White "Timoshin, Andrei"]
[Black "Kanep, Meelis"]
[Result "0-1"]
[TimeControl "90 minutes for first 40 moves and 15 min. for the rest of the game with 30 sec."]
[BlackTitle "GM"]
[WhiteFideId "4503503"]
[BlackFideId "4501047"]
[WhiteElo "2150"]
[BlackElo "2433"]

1. e4 {[%clk 01:30:51]} {[%emt 00:00:08]} c5 {[%clk 01:30:38]} {[%emt
00:00:23]} 2. f4 {[%clk 01:31:10]} {[%emt 00:00:11]} d5 {[%clk 01:28:51]}
{[%emt 00:02:17]} 3. exd5 {[%clk 01:31:31]} {[%emt 00:00:09]} Nf6 {[%clk
01:29:02]} {[%emt 00:00:20]} 4. Bb5+ {[%clk 01:31:48]} {[%emt 00:00:13]} Nbd7
{[%clk 01:29:19]} {[%emt 00:00:13]} 5. c4 {[%clk 01:32:09]} {[%emt 00:00:09]}
a6 {[%clk 01:29:18]} {[%emt 00:00:31]} 6. Bxd7+ {[%clk 01:32:24]} {[%emt
00:00:15]} Bxd7 {[%clk 01:29:41]} {[%emt 00:00:08]} 7. Nf3 {[%clk 01:32:43]}
{[%emt 00:00:11]} e6 {[%clk 01:28:34]} {[%emt 00:01:38]} 8. dxe6 {[%clk
01:31:13]} {[%emt 00:01:59]} Bxe6 {[%clk 01:28:45]} {[%emt 00:00:19]} 9. d3
{[%clk 01:31:31]} {[%emt 00:00:12]} Bd6 {[%clk 01:26:12]} {[%emt 00:03:03]} 10.
O-O {[%clk 01:31:52]} {[%emt 00:00:09]} O-O {[%clk 01:26:25]} {[%emt 00:00:17]}
11. Nc3 {[%clk 01:32:08]} {[%emt 00:00:14]} Re8 {[%clk 01:21:07]} {[%emt
00:05:49]} 12. Ng5 {[%clk 01:23:58]} {[%emt 00:08:40]} Bf5 {[%clk 01:02:54]}
{[%emt 00:18:44]} 13. Qf3 {[%clk 01:08:17]} {[%emt 00:16:10]} b5 {[%clk
00:56:56]} {[%emt 00:25:29]} 14. Nge4 {[%clk 00:33:01]} {[%emt 00:16:45]} bxc4
{[%clk 00:50:33]} {[%emt 00:06:54]} 15. Nxf6+ {[%clk 00:31:41]} {[%emt
00:42:59]} Qxf6 {[%clk 00:50:45]} 16. dxc4 {[%clk 00:32:04]} Qd4+ {[%clk
00:50:17]} 17. Kh1 {[%clk 00:32:23]} Rad8 {[%clk 00:28:35]} 18. Rd1 {[%clk
00:24:11]} Bc2 {[%clk 00:26:02]} 19. Rg1 {[%clk 00:20:52]} Bc7 {[%clk
00:14:37]} {[%emt 00:10:06]} 20. b3 {[%clk 00:13:56]} {[%emt 00:07:25]} Be4
{[%clk 00:11:06]} {[%emt 00:04:01]} 21. Qg3 {[%clk 00:11:29]} {[%emt 00:02:57]}
Bc6 {[%clk 00:10:23]} {[%emt 00:01:13]} 22. Bb2 {[%clk 00:06:15]} {[%emt
00:05:44]} Bxf4 {[%clk 00:10:41]} {[%emt 00:00:12]} 23. Nd5 {[%clk 00:04:20]}
{[%emt 00:02:25]} Qxg1+ {[%clk 00:10:29]} {[%emt 00:00:43]} 24. Kxg1 {[%clk
00:03:54]} {[%emt 00:00:56]} Bxg3 {[%clk 00:10:53]} {[%emt 00:00:06]} 0-1

[Event "Estonian Chess Championship 2021"]
[Site "Tallinn, Paul Keres Chess House, Estonia"]
[Date "2021.12.13"]
[Round "3.2"]
[White "Pedmanson, Albert"]
[Black "Rychagov, Nikita"]
[Result "1-0"]
[TimeControl "90 minutes for first 40 moves and 15 min. for the rest of the game with 30 sec."]
[WhiteFideId "4505778"]
[BlackFideId "4508394"]
[WhiteElo "1888"]
[BlackElo "1985"]

1. e4 {[%clk 01:30:45]} {[%emt 00:00:14]} e5 {[%clk 01:30:56]} {[%emt
00:00:05]} 2. Nf3 {[%clk 01:31:01]} {[%emt 00:00:14]} Nc6 {[%clk 01:31:22]}
{[%emt 00:00:04]} 3. Bc4 {[%clk 01:31:15]} {[%emt 00:00:15]} Bc5 {[%clk
01:31:48]} {[%emt 00:00:04]} 4. c3 {[%clk 01:31:09]} {[%emt 00:00:36]} Nf6
{[%clk 01:32:10]} {[%emt 00:00:08]} 5. d4 {[%clk 01:31:32]} {[%emt 00:00:08]}
exd4 {[%clk 01:32:36]} {[%emt 00:00:04]} 6. e5 {[%clk 01:31:51]} {[%emt
00:00:11]} d5 {[%clk 01:33:00]} {[%emt 00:00:07]} 7. Bb5 {[%clk 01:32:12]}
{[%emt 00:00:09]} Ne4 {[%clk 01:33:23]} {[%emt 00:00:07]} 8. cxd4 {[%clk
01:32:36]} {[%emt 00:00:06]} Bb6 {[%clk 01:33:50]} {[%emt 00:00:03]} 9. h3
{[%clk 01:31:58]} {[%emt 00:01:08]} O-O {[%clk 01:34:06]} {[%emt 00:00:14]} 10.
Nc3 {[%clk 01:31:30]} {[%emt 00:00:57]} f6 {[%clk 01:23:50]} {[%emt 00:10:46]}
11. Be3 {[%emt 00:27:44]} f5 {[%clk 01:16:36]} {[%emt 00:07:42]} 12. Ne2 {[%clk
01:04:20]} {[%emt 00:00:28]} Ba5+ {[%clk 01:07:30]} {[%emt 00:09:36]} 13. Nd2
{[%clk 01:01:41]} {[%emt 00:03:09]} f4 {[%clk 01:06:18]} {[%emt 00:01:42]} 14.
Nxf4 {[%clk 00:58:00]} {[%emt 00:21:52]} Nxd4 {[%clk 01:04:33]} 15. Bd3 {[%clk
00:55:48]} Nf5 {[%clk 00:38:34]} {[%emt 00:13:45]} 16. Bxe4 {[%clk 00:36:42]}
{[%emt 00:52:57]} Nxe3 {[%clk 00:38:18]} 17. fxe3 {[%clk 00:35:24]} Qh4+ {[%clk
00:38:40]} 18. Ke2 {[%clk 00:35:06]} dxe4 {[%clk 00:38:58]} 19. Qb3+ {[%clk
00:32:01]} Kh8 {[%clk 00:39:04]} 20. Qa3 {[%clk 00:29:18]} Bg4+ {[%clk
00:37:11]} 21. hxg4 Qxg4+ {[%clk 00:37:37]} 22. Ke1 {[%clk 00:14:22]} Bxd2+
{[%clk 00:28:10]} {[%emt 00:05:54]} 23. Kxd2 {[%clk 00:14:11]} {[%emt
00:00:40]} Rad8+ {[%clk 00:28:00]} {[%emt 00:00:40]} 24. Kc1 {[%clk 00:13:38]}
{[%emt 00:01:02]} Rfe8 {[%clk 00:19:34]} {[%emt 00:08:56]} 25. Qc3 {[%clk
00:11:09]} {[%emt 00:02:59]} b5 {[%clk 00:17:14]} {[%emt 00:02:50]} 26. Kc2
{[%clk 00:08:02]} {[%emt 00:03:37]} b4 {[%clk 00:13:41]} {[%emt 00:04:03]} 27.
Qc4 {[%clk 00:07:57]} {[%emt 00:00:34]} Rxe5 {[%clk 00:13:18]} {[%emt
00:00:53]} 28. Rxh7+ {[%clk 00:08:03]} {[%emt 00:00:24]} 1-0

[Event "Estonian Chess Championship 2021"]
[Site "Tallinn, Paul Keres Chess House, Estonia"]
[Date "2021.12.13"]
[Round "3.3"]
[White "Hansson, Markus"]
[Black "Andrijashkin, Deniss"]
[Result "0-1"]
[TimeControl "90 minutes for first 40 moves and 15 min. for the rest of the game with 30 sec."]
[WhiteFideId "4505620"]
[BlackFideId "4504631"]
[WhiteElo "1662"]
[BlackElo "2036"]

1. c4 {[%clk 01:30:57]} {[%emt 00:00:02]} g6 {[%clk 01:27:36]} {[%emt
00:03:25]} 2. Nc3 {[%clk 01:31:13]} {[%emt 00:00:14]} Bg7 {[%clk 01:28:02]}
{[%emt 00:00:04]} 3. e4 {[%clk 01:31:27]} {[%emt 00:00:15]} c5 {[%clk
01:27:29]} {[%emt 00:01:03]} 4. g3 {[%clk 01:31:45]} {[%emt 00:00:12]} Nc6
{[%clk 01:27:50]} {[%emt 00:00:09]} 5. Bg2 {[%clk 01:32:09]} {[%emt 00:00:06]}
e6 {[%clk 01:27:48]} {[%emt 00:00:32]} 6. Nge2 {[%clk 01:32:24]} {[%emt
00:00:15]} d6 {[%clk 01:25:08]} {[%emt 00:03:11]} 7. d3 {[%clk 01:32:20]}
{[%emt 00:00:34]} Nge7 {[%clk 01:24:37]} {[%emt 00:01:01]} 8. O-O {[%clk
01:32:16]} {[%emt 00:00:34]} O-O {[%clk 01:25:02]} {[%emt 00:00:04]} 9. Rb1
{[%clk 01:31:47]} {[%emt 00:00:59]} b6 {[%clk 01:24:34]} {[%emt 00:00:59]} 10.
a3 {[%clk 01:32:02]} {[%emt 00:00:16]} Bb7 {[%clk 01:24:36]} {[%emt 00:00:28]}
11. b4 {[%clk 01:29:37]} {[%emt 00:02:54]} Qd7 {[%clk 01:24:57]} {[%emt
00:00:09]} 12. b5 {[%clk 01:24:34]} {[%emt 00:05:33]} Nd4 {[%clk 01:03:49]}
{[%emt 00:21:39]} 13. Nf4 {[%clk 01:07:00]} {[%emt 00:18:04]} Rad8 {[%clk
00:40:16]} {[%emt 00:25:14]} 14. Bb2 {[%clk 01:03:26]} {[%emt 00:02:52]} Qc7
{[%clk 00:34:04]} {[%emt 00:06:42]} 15. Re1 {[%clk 01:00:38]} {[%emt 00:03:18]}
h5 {[%clk 00:31:58]} {[%emt 00:02:36]} 16. h4 {[%clk 00:52:54]} {[%emt
00:08:13]} Bh6 {[%clk 00:31:15]} {[%emt 00:42:58]} 17. Bc1 {[%clk 00:52:51]}
Kg7 {[%clk 00:24:42]} 18. g4 {[%clk 00:35:33]} hxg4 19. Qxg4 {[%clk 00:35:57]}
Ng8 {[%clk 00:23:07]} 20. Nh5+ {[%clk 00:26:29]} Kh7 {[%clk 00:22:11]} 21. Bxh6
{[%clk 00:26:43]} Kxh6 {[%clk 00:16:28]} {[%emt 00:05:13]} 22. Nf4 {[%clk
00:16:22]} {[%emt 00:10:52]} Qe7 {[%clk 00:10:46]} {[%emt 00:06:12]} 23. Re3
{[%clk 00:15:07]} {[%emt 00:01:45]} Kh7 {[%clk 00:08:55]} {[%emt 00:02:18]} 24.
Rg3 {[%clk 00:10:37]} {[%emt 00:05:03]} Nf6 {[%clk 00:03:34]} {[%emt 00:05:51]}
25. Qg5 {[%clk 00:10:52]} {[%emt 00:00:15]} e5 {[%clk 00:03:37]} {[%emt
00:00:27]} 26. Ncd5 {[%clk 00:09:37]} {[%emt 00:01:44]} Bxd5 {[%clk 00:03:03]}
{[%emt 00:01:05]} 27. Nxd5 {[%clk 00:10:03]} {[%emt 00:00:03]} Nxd5 {[%clk
00:03:27]} {[%emt 00:00:06]} 28. exd5 {[%clk 00:10:04]} {[%emt 00:00:30]} Qxg5
{[%clk 00:03:06]} {[%emt 00:00:51]} 29. Rxg5 {[%clk 00:10:30]} {[%emt
00:00:03]} Kg7 {[%clk 00:02:23]} {[%emt 00:01:14]} 30. Kh2 {[%clk 00:02:14]}
{[%emt 00:08:46]} Rh8 {[%clk 00:02:36]} {[%emt 00:00:17]} 31. Kh3 {[%clk
00:01:01]} {[%emt 00:01:43]} Rh6 {[%clk 00:02:30]} {[%emt 00:00:35]} 32. Rh1
{[%clk 00:01:29]} {[%emt 00:00:03]} Rdh8 {[%clk 00:02:48]} {[%emt 00:00:12]} 33.
Kg3 {[%clk 00:01:14]} {[%emt 00:00:45]} Nf5+ {[%clk 00:03:01]} {[%emt
00:00:16]} 34. Kg4 {[%clk 00:00:49]} {[%emt 00:00:55]} Nxh4 {[%clk 00:02:32]}
{[%emt 00:00:58]} 35. Rxh4 {[%clk 00:00:53]} {[%emt 00:00:27]} Rxh4+ {[%clk
00:02:49]} {[%emt 00:00:13]} 36. Kf3 {[%clk 00:01:22]} {[%emt 00:00:01]} f5
{[%clk 00:02:35]} {[%emt 00:00:43]} 37. Rg3 {[%clk 00:01:25]} {[%emt 00:00:28]}
Kf6 {[%clk 00:02:35]} {[%emt 00:00:31]} 38. Bf1 {[%clk 00:01:02]} {[%emt
00:00:52]} Rh1 {[%clk 00:02:37]} {[%emt 00:00:27]} 39. Ke2 {[%clk 00:16:21]}
{[%emt 00:00:11]} g5 {[%clk 00:17:41]} {[%emt 00:00:26]} 40. Rg2 {[%clk
00:12:35]} {[%emt 00:04:16]} g4 {[%clk 00:17:36]} {[%emt 00:00:35]} 41. Rg3
{[%clk 00:09:49]} {[%emt 00:03:16]} Kg5 {[%clk 00:17:13]} {[%emt 00:00:53]} 42.
d4 {[%clk 00:10:12]} {[%emt 00:00:07]} cxd4 {[%clk 00:17:00]} {[%emt 00:00:43]}
43. Bg2 {[%clk 00:09:34]} {[%emt 00:01:08]} Rc1 {[%clk 00:17:20]} {[%emt
00:00:10]} 44. f3 {[%clk 00:09:37]} {[%emt 00:00:29]} Kf4 {[%clk 00:17:34]}
{[%emt 00:00:14]} 0-1

[Event "Estonian Chess Championship 2021"]
[Site "Tallinn, Paul Keres Chess House, Estonia"]
[Date "2021.12.13"]
[Round "3.4"]
[White "Volodin, Aleksandr"]
[Black "Kull, Tormi"]
[Result "1-0"]
[TimeControl "90 minutes for first 40 moves and 15 min. for the rest of the game with 30 sec."]
[WhiteTitle "GM"]
[WhiteFideId "4501950"]
[BlackFideId "4510151"]
[WhiteElo "2461"]
[BlackElo "1753"]

1. d4 {[%clk 01:28:52]} {[%emt 00:02:07]} d5 {[%clk 01:30:51]} {[%emt
00:00:09]} 2. c4 {[%clk 01:28:43]} {[%emt 00:00:39]} c6 {[%clk 01:31:14]}
{[%emt 00:00:07]} 3. Nf3 {[%clk 01:28:02]} {[%emt 00:01:11]} Nf6 {[%clk
01:31:21]} {[%emt 00:00:23]} 4. Qb3 {[%clk 01:27:34]} {[%emt 00:00:59]} dxc4
{[%clk 01:31:32]} {[%emt 00:00:19]} 5. Qxc4 {[%clk 01:28:00]} {[%emt 00:00:04]}
Bf5 {[%clk 01:31:45]} {[%emt 00:00:16]} 6. Nc3 {[%clk 01:27:11]} {[%emt
00:01:19]} e6 {[%clk 01:30:43]} {[%emt 00:01:32]} 7. g3 {[%clk 01:26:34]}
{[%emt 00:01:08]} Be7 {[%clk 01:29:23]} {[%emt 00:01:50]} 8. Bg2 {[%clk
01:26:51]} {[%emt 00:00:12]} O-O {[%clk 01:29:23]} {[%emt 00:00:30]} 9. O-O
{[%clk 01:24:16]} {[%emt 00:03:05]} h6 {[%clk 01:29:09]} {[%emt 00:00:44]} 10.
Re1 {[%clk 01:14:49]} {[%emt 00:09:57]} Ne4 {[%clk 01:24:18]} {[%emt 00:05:21]}
11. Nd2 {[%clk 01:13:03]} Nxd2 12. Bxd2 {[%clk 01:13:18]} Nd7 {[%clk 01:21:15]}
13. e4 {[%clk 01:12:26]} Bg6 {[%clk 01:19:06]} {[%emt 00:00:49]} 14. Be3 {[%clk
01:12:13]} {[%emt 00:00:44]} Nb6 {[%clk 01:17:00]} {[%emt 00:02:35]} 15. Qb3
{[%clk 01:12:16]} {[%emt 00:00:27]} Bg5 {[%clk 01:08:34]} {[%emt 00:08:57]} 16.
f4 {[%clk 01:12:27]} {[%emt 00:00:19]} Bf6 {[%clk 01:08:50]} {[%emt 00:00:14]}
17. Rad1 {[%clk 01:12:42]} {[%emt 00:00:15]} Qc7 {[%clk 01:00:50]} {[%emt
00:08:30]} 18. Bf2 {[%clk 01:06:17]} {[%emt 00:23:25]} Rad8 {[%clk 00:58:15]}
19. Bf3 {[%clk 01:04:06]} Rd7 {[%clk 00:54:44]} 20. Ne2 {[%clk 01:01:03]} Rfd8
{[%clk 00:51:38]} {[%emt 00:00:25]} 21. Kg2 {[%clk 00:57:05]} {[%emt 00:04:28]}
Nc8 {[%clk 00:47:07]} {[%emt 00:05:01]} 22. h4 {[%clk 00:45:13]} {[%emt
00:12:22]} Be7 {[%clk 00:46:00]} {[%emt 00:01:37]} 23. h5 {[%clk 00:43:47]}
{[%emt 00:42:46]} Bh7 {[%clk 00:46:20]} 24. Rc1 {[%clk 00:40:58]} Qa5 {[%clk
00:42:51]} 25. a3 {[%clk 00:37:47]} Kh8 {[%clk 00:39:47]} 26. Red1 {[%clk
00:36:03]} Bg8 {[%clk 00:37:11]} 27. Nc3 {[%clk 00:32:38]} f6 {[%clk 00:36:28]}
28. e5 {[%clk 00:27:51]} fxe5 29. fxe5 {[%clk 00:26:58]} Bg5 {[%clk 00:30:36]}
30. Ra1 {[%clk 00:27:03]} Rf8 {[%clk 00:28:54]} {[%emt 00:00:30]} 31. Bg4
{[%clk 00:25:18]} {[%emt 00:02:14]} Rdf7 {[%clk 00:22:23]} {[%emt 00:07:01]} 32.
Rf1 {[%clk 00:24:50]} {[%emt 00:00:58]} Qa6 {[%clk 00:21:20]} {[%emt 00:01:34]}
33. Ne4 {[%clk 00:13:58]} {[%emt 00:11:21]} Bh7 {[%clk 00:20:19]} {[%emt
00:01:31]} 34. Nc5 {[%clk 00:13:37]} {[%emt 00:00:51]} Qb6 {[%clk 00:16:24]}
{[%emt 00:04:25]} 35. Qxb6 {[%clk 00:13:14]} {[%emt 00:00:54]} axb6 {[%clk
00:16:46]} {[%emt 00:00:07]} 36. Nxe6 {[%clk 00:13:11]} {[%emt 00:00:32]} Be4+
{[%clk 00:16:50]} {[%emt 00:00:26]} 37. Kg1 {[%clk 00:13:27]} {[%emt 00:00:14]}
Re8 {[%clk 00:15:08]} {[%emt 00:02:13]} 38. Nxg5 {[%clk 00:13:15]} {[%emt
00:00:42]} hxg5 {[%clk 00:15:27]} {[%emt 00:00:10]} 39. Be3 {[%clk 00:13:39]}
{[%emt 00:00:06]} 1-0